bitfinex-derivatives/quotes_ETHF0:USTF0_20250902
["timestamp","ask_amount","ask_price","bid_price","bid_amount"]
[1756797669298,0.7083,4395.3,4395.2,1.95632841]
[1756797669503,0.90506495,4395.3,4395.2,2.08802841]
[1756797672307,0.50536495,4395.3,4395.2,2.17042841]
[1756797672612,0.3086,4395.3,4395.2,2.17042841]
[1756797673910,0.50993588,4395.3,4395.2,2.17042841]
[1756797674204,0.70083588,4395.3,4395.2,2.08802841]
[1756797674915,0.50993588,4395.3,4395.2,2.17042841]
[1756797675108,0.3086,4395.3,4395.2,2.17042841]
[1756797675412,0.3086,4395.3,4395.2,5.37822841]
[1756797675609,0.3086,4395.3,4395.2,6.16727288]
[1756797677110,0.3086,4395.3,4395.2,5.37822841]
[1756797678811,0.1207,4396.0,4395.2,5.29582841]
[1756797679007,0.20112435,4395.9,4395.8,0.346]
[1756797679206,0.3034,4396.3,4395.8,0.578]
[1756797679412,0.20115729,4396.2,4395.9,0.0824]
[1756797679610,0.4943,4396.2,4396.1,0.2636]
[1756797679809,0.1235,4396.0,4395.7,3.2078]
[1756797680008,0.1909,4395.3,4395.2,1.89582491]
[1756797680318,0.4943,4395.3,4395.2,2.08822841]
[1756797681420,0.4943,4395.3,4395.2,1.85622841]
[1756797681618,0.4943,4395.3,4395.2,2.08822841]
[1756797681619,0.6893,4395.3,4395.2,2.08822841]
[1756797682124,0.4943,4395.3,4395.2,2.08822841]
[1756797683021,0.1235,4396.0,4395.2,2.08822841]
[1756797683022,0.1235,4396.0,4395.2,2.17062841]
[1756797683219,0.89038543,4395.9,4395.8,0.1318]
[1756797683420,0.89038543,4395.9,4395.8,0.3638]
[1756797684520,0.20108543,4395.9,4395.8,0.578]
[1756797684821,3.99684447,4396.4,4395.8,0.4956]
[1756797685125,0.69540148,4396.3,4396.2,0.2636]
[1756797685319,0.69540148,4396.3,4396.2,0.4956]
[1756797685513,0.69540148,4396.3,4396.2,4.57484447]
[1756797685717,3.2078,4396.9,4396.2,45.29244447]
[1756797685925,0.69541727,4396.8,4396.7,0.2636]
[1756797686124,0.69541727,4396.8,4396.7,0.4956]
[1756797687022,0.3034,4396.8,4396.7,0.578]
[1756797687424,0.4943,4396.8,4396.7,0.4956]
[1756797688225,1.28334447,4396.8,4396.7,0.4956]
[1756797688525,1.47834447,4396.8,4396.7,0.4956]
[1756797688721,0.3034,4396.7,4396.2,44.0078]
[1756797689022,1.47834447,4396.3,4396.2,40.8]
[1756797689329,1.67935435,4396.3,4396.2,40.8]
[1756797689532,1.67935435,4396.3,4396.1,0.231]
[1756797689724,0.8128,4395.5,4395.2,4.80042841]
[1756797689919,1.60184447,4395.5,4395.4,41.031]
[1756797692135,1.60184447,4395.5,4395.4,0.231]
[1756797692537,1.80801462,4395.5,4395.4,0.3628]
[1756797693235,1.80801462,4395.5,4395.4,0.231]
[1756797694230,1.80801462,4395.5,4395.3,40.8]
[1756797694231,0.6893,4395.3,4395.2,4.80042841]
[1756797694428,0.89547015,4395.3,4395.2,5.03142841]
[1756797694925,0.89547015,4395.3,4395.2,5.16322841]
[1756797696537,0.89547015,4395.3,4395.2,4.93222841]
[1756797696735,0.89547015,4395.3,4395.2,5.16322841]
[1756797697733,0.50957015,4395.3,4395.2,5.37742841]
[1756797698331,0.70047015,4395.3,4395.2,5.29502841]
[1756797700337,0.50957015,4395.3,4395.2,5.37742841]
[1756797700535,0.3034,4395.3,4395.2,5.37742841]
[1756797700734,0.50977336,4395.3,4395.2,5.37742841]
[1756797701432,0.50977175,4395.3,4395.2,5.37742841]
[1756797701637,0.70067175,4395.3,4395.2,5.29502841]
[1756797703234,0.70067175,4395.3,4395.2,5.06402841]
[1756797703430,0.90317175,4395.3,4395.2,5.16322841]
[1756797704035,0.50977175,4395.3,4395.2,5.37642841]
[1756797705234,1.70111622,4395.3,4395.2,5.29382841]
[1756797707538,1.70111622,4395.3,4395.2,2.08602841]
[1756797708339,1.70111622,4395.3,4395.2,1.95482841]
[1756797708933,1.49861622,4395.3,4395.2,2.16802841]
[1756797709135,1.29881622,4395.3,4395.2,2.16802841]
[1756797709534,1.70111622,4395.3,4395.2,2.08602841]
[1756797711239,1.49474447,4395.3,4395.2,2.08602841]
[1756797711436,1.70107413,4395.3,4395.2,2.08602841]
[1756797712237,1.70115321,4395.3,4395.2,2.08602841]
[1756797713036,0.20640874,4395.3,4395.2,2.08602841]
[1756797713342,0.49300874,4395.3,4395.2,2.16802841]
[1756797713736,0.69280874,4395.3,4395.2,2.08602841]
[1756797715241,0.89530874,4395.3,4395.2,2.08602841]
[1756797715847,0.89530874,4395.3,4395.2,1.82362841]
[1756797716544,0.89530874,4395.3,4395.2,1.95482841]
[1756797717636,1.68435321,4395.3,4395.2,1.82362841]
[1756797718039,0.89530874,4395.3,4395.2,1.82362841]
[1756797718948,0.89530874,4395.3,4395.2,1.95482841]
[1756797719645,0.89530874,4395.3,4395.2,1.59262841]
[1756797720543,1.68435321,4395.3,4395.2,1.59262841]
[1756797720745,1.68435321,4395.3,4395.2,1.72382841]
[1756797721447,1.88026385,4395.3,4395.2,1.59262841]
[1756797721845,0.89594272,4395.3,4395.2,1.85502841]
[1756797722048,1.88026385,4395.3,4395.2,1.85502841]
[1756797722248,0.20704272,4395.3,4395.2,5.14512841]
[1756797723443,0.49364272,4395.3,4395.2,5.14512841]
[1756797724248,0.69344272,4395.3,4395.2,5.06282841]
[1756797724449,0.69344272,4395.3,4395.2,5.29382841]
[1756797724649,0.69344272,4395.3,4395.2,2.08602841]
[1756797726248,0.89594272,4395.3,4395.2,1.72382841]
[1756797726448,0.89594272,4395.3,4395.2,1.95482841]
[1756797726846,0.89594272,4395.3,4395.2,2.08662841]
[1756797727247,0.89594272,4395.3,4395.2,1.82362841]
[1756797727454,0.89594272,4395.3,4395.2,1.59262841]
[1756797727647,0.89594272,4395.3,4395.2,1.82362841]
[1756797731354,0.89594272,4395.3,4395.2,1.95542841]
[1756797731653,0.91562783,4395.3,4395.2,1.95542841]
[1756797732251,0.51332783,4395.3,4395.2,2.16962841]
[1756797732556,0.22672783,4395.3,4395.2,42.96962841]
[1756797732755,0.51512783,4395.3,4395.2,42.88722841]
[1756797733159,0.51512783,4395.3,4395.2,42.96962841]
[1756797734361,0.22672783,4395.3,4395.2,42.96962841]
[1756797734559,0.51512783,4395.3,4395.2,42.96962841]
[1756797734958,0.22672783,4395.3,4395.2,42.96962841]
[1756797738152,0.22672783,4395.3,4395.2,47.23674595]
[1756797738358,0.0313,4395.5,4395.4,0.2636]
[1756797738661,0.2884,4396.2,4395.4,1.47892113]
[1756797738958,0.2884,4396.0,4395.7,3.2078]
[1756797739157,0.48980156,4395.9,4395.8,0.231]
[1756797741563,0.2028,4395.3,4395.2,45.64002595]
[1756797741763,0.4912,4395.3,4395.2,45.60042841]
[1756797741964,0.4912,4395.3,4395.2,45.83142841]
[1756797742164,0.2884,4395.3,4395.2,45.83142841]
[1756797742560,0.2884,4395.8,4395.2,45.83142841]
[1756797742767,0.2884,4395.6,4395.3,0.98432113]
[1756797742963,0.2341,4395.9,4395.4,0.231]
[1756797743160,0.40395151,4395.8,4395.4,0.231]
[1756797743360,0.40395151,4395.7,4395.4,0.231]
[1756797743561,0.4912,4395.8,4395.4,0.231]
[1756797743760,0.40388239,4395.7,4395.4,0.231]
[1756797743962,0.4912,4395.5,4395.4,0.231]
[1756797744157,0.8121,4395.5,4395.4,0.231]
[1756797744466,1.01313702,4395.5,4395.4,0.231]
[1756797752974,1.01067271,4395.5,4395.4,0.231]
[1756797753664,0.8121,4395.5,4395.4,0.231]
[1756797753864,1.01066976,4395.5,4395.4,0.231]
[1756797758266,1.01066976,4395.5,4395.2,4.80042841]
[1756797758469,1.47129089,4395.4,4395.3,0.231]
[1756797758663,1.87899089,4395.4,4395.3,0.231]
[1756797761475,0.299,4395.3,4395.2,1.59262841]
[1756797761669,0.88616976,4395.3,4395.2,1.82362841]
[1756797763770,0.90757656,4395.3,4395.2,1.82362841]
[1756797764080,0.9075767,4395.3,4395.2,1.82362841]
[1756797764373,0.90756657,4395.3,4395.2,1.82362841]
[1756797764571,1.8918877,4395.3,4395.2,1.82502841]
[1756797765177,1.8918877,4395.3,4395.2,1.82362841]
[1756797768580,0.90756657,4395.3,4395.2,1.82362841]
[1756797768781,1.8918877,4395.3,4395.2,1.82362841]
[1756797774192,1.67192113,4395.3,4395.2,1.82362841]
[1756797774389,1.89233827,4395.3,4395.2,1.82362841]
[1756797777292,1.89233827,4395.3,4395.2,1.59262841]
[1756797780983,1.89233827,4395.3,4394.2,3.2078]
[1756797780984,0.6876,4394.9,4394.8,0.231]
[1756797781190,0.3886,4394.3,4394.2,3.4388]
[1756797781391,0.51941714,4394.3,4394.2,3.4416]
[1756797781692,1.89233827,4394.3,4394.2,3.4416]
[1756797782800,0.90801714,4394.3,4394.2,3.4416]
[1756797783486,0.51941714,4394.3,4394.2,3.4416]
[1756797783798,0.22694997,4394.3,4394.2,3.4416]
[1756797784090,0.71864997,4394.3,4394.2,3.4416]
[1756797784688,0.91454997,4394.3,4394.2,3.4416]
[1756797786394,0.91454997,4394.3,4394.2,3.4388]
[1756797787500,0.91443129,4394.3,4394.2,3.4388]
[1756797791600,0.91443129,4394.3,4394.2,0.231]
[1756797794302,0.91443129,4394.3,4394.1,0.33568464]
[1756797794504,1.45558698,4394.2,4394.1,0.33568464]
[1756797794699,1.30568146,4394.2,4394.1,0.33568464]
[1756797794906,0.51559448,4394.2,4394.1,0.33568464]
[1756797796499,0.22659448,4394.2,4394.1,0.33568464]
[1756797797006,0.22659448,4394.2,4394.1,45.36326463]
[1756797797302,0.3203,4394.6,4394.1,45.36326463]
[1756797797303,0.0313,4394.6,4394.1,45.36326463]
[1756797797606,0.0313,4394.6,4394.5,3.99788698]
[1756797797907,0.25790127,4394.6,4394.5,4.22888698]
[1756797798305,0.25790127,4394.6,4394.5,49.25643698]
[1756797798707,0.0313,4394.6,4394.5,49.02888698]
[1756797800209,1.33687555,4394.6,4394.5,44.2388]
[1756797800999,0.25778857,4394.6,4394.5,44.2388]
[1756797801606,0.0313,4394.6,4394.5,44.2388]
[1756797803120,0.289,4395.0,4394.5,44.2388]
[1756797803304,0.289,4394.8,4394.5,44.2388]
[1756797803612,0.289,4394.6,4394.5,44.2388]
[1756797805812,0.0313,4394.8,4394.5,44.2388]
[1756797806006,0.0313,4394.8,4394.7,0.79008698]
[1756797806307,0.25776593,4394.8,4394.7,1.02108698]
[1756797806709,0.54676593,4394.8,4394.7,1.02108698]
[1756797808913,0.54680442,4394.8,4394.7,1.02108698]
[1756797809808,0.73510442,4394.8,4394.7,1.02108698]
[1756797810203,0.92330442,4394.8,4394.7,0.231]
[1756797811313,0.289,4394.7,4394.5,44.0078]
[1756797811512,0.51550442,4394.6,4394.5,44.0078]
[1756797811711,0.51550442,4394.6,4394.5,44.2388]
[1756797811912,0.51556013,4394.6,4394.5,44.2388]
[1756797812110,0.289,4394.6,4394.5,44.0078]
[1756797812311,0.51555276,4394.6,4394.5,44.2388]
[1756797812713,0.289,4394.6,4394.5,44.2388]
[1756797815417,0.289,4394.6,4394.5,44.0078]
[1756797815717,0.289,4394.6,4394.5,44.2388]
[1756797816711,0.289,4394.6,4394.5,44.0078]
[1756797816910,0.289,4394.6,4394.5,44.2388]
[1756797817919,0.0313,4394.8,4394.5,44.2388]
[1756797818120,0.22129213,4394.7,4394.5,44.2388]
[1756797818416,0.3203,4394.8,4394.6,0.79008698]
[1756797818611,0.3203,4394.8,4394.7,0.231]
[1756797818807,0.54161443,4394.8,4394.7,0.231]
[1756797820717,0.91811443,4394.8,4394.7,0.231]
[1756797820919,0.289,4394.7,4394.5,44.0078]
[1756797821116,0.3935,4394.2,4394.1,0.10468464]
[1756797821319,1.70310141,4394.2,4394.1,0.33568464]
[1756797821518,1.70310141,4394.2,4394.1,0.02268464]
[1756797821519,6.49318839,4394.2,4394.1,0.02268464]
[1756797821724,0.6917,4393.3,4393.2,3.2078]
[1756797822022,1.70310141,4393.3,4393.2,3.4388]
[1756797822222,1.70310141,4393.3,4393.2,44.2388]
[1756797822514,1.7030352,4393.3,4393.2,44.0078]
[1756797822720,0.91294822,4393.3,4393.2,44.2388]
[1756797823121,0.91294807,4393.3,4393.2,44.2388]
[1756797824313,5.14056807,4393.3,4391.8,2.83383685]
[1756797824517,0.91428698,4393.5,4391.8,2.83383685]
[1756797824518,1.48178698,4392.3,4392.2,3.4147]
[1756797824821,1.70303505,4392.3,4392.2,44.4457]
[1756797825021,1.70303505,4392.3,4392.2,44.2388]
[1756797825321,1.70303505,4392.3,4392.2,3.4388]
[1756797825824,5.70303505,4392.3,4392.2,3.2078]
[1756797826621,5.70232297,4392.3,4392.2,3.2078]
[1756797827328,0.4948,4391.7,4391.6,3.9023]
[1756797827520,1.48178698,4391.7,4391.6,3.4388]
[1756797827725,1.48178698,4391.7,4391.6,44.2388]
[1756797829413,1.48178698,4391.7,4391.6,3.4388]
[1756797830422,0.6917,4391.7,4391.6,3.4388]
[1756797830622,1.48178698,4391.7,4391.6,3.4388]
[1756797830822,1.48178698,4391.7,4391.6,3.6457]
[1756797831125,0.2982,4391.7,4391.6,4.1333]
[1756797832424,0.4948,4391.7,4391.6,4.1333]
[1756797833027,0.2982,4391.7,4391.6,4.1333]
[1756797835325,0.0314,4391.9,4391.7,0.2846]
[1756797835529,0.2982,4392.6,4392.5,0.6919]
[1756797835724,0.2982,4392.6,4392.5,0.9229]
[1756797836823,1.18358698,4393.4,4393.3,0.4099]
[1756797837026,0.4948,4393.4,4393.3,0.9229]
[1756797837424,0.4948,4393.4,4393.3,0.6409]
[1756797837724,0.6917,4393.4,4393.3,0.6409]
[1756797839232,0.6917,4393.3,4393.2,0.4379]
[1756797839428,1.48178698,4393.3,4393.2,0.6409]
[1756797839928,0.6917,4393.3,4393.2,0.9229]
[1756797840133,1.48178698,4393.3,4393.2,0.6409]
[1756797840326,1.48178698,4393.3,4393.2,0.231]
[1756797840526,0.2982,4393.2,4393.0,40.8]
[1756797840728,0.6917,4393.1,4393.0,40.8]
[1756797841028,0.6917,4393.1,4393.0,0.231]
[1756797841428,0.8159,4393.0,4392.9,3.2078]
[1756797841629,1.60598698,4393.0,4392.9,3.4388]
[1756797843528,1.80127007,4393.0,4392.9,3.4388]
[1756797843931,1.80127007,4393.0,4392.9,3.2078]
[1756797844732,5.344,4393.4,4392.9,4.83407007]
[1756797844935,0.4948,4393.3,4393.2,0.692]
[1756797845235,0.4948,4393.3,4393.2,0.923]
[1756797845631,0.6917,4393.3,4393.2,0.6409]
[1756797845832,1.67707007,4393.3,4393.2,0.232]
[1756797846034,1.67707007,4393.3,4393.2,0.4389]
[1756797846232,0.4948,4393.3,4393.2,0.924]
[1756797846432,0.2982,4393.3,4393.2,0.924]
[1756797846832,5.344,4393.4,4393.3,0.2821]
[1756797847033,5.344,4393.4,4393.3,0.692]
[1756797847426,5.6422,4393.4,4393.3,0.692]
[1756797847631,0.2982,4393.4,4393.3,0.692]
[1756797848537,0.6917,4393.4,4393.2,0.232]
[1756797848736,0.6917,4393.4,4393.3,0.2069]
[1756797849344,0.61263406,4393.4,4393.0,40.8]
[1756797849637,0.2982,4393.1,4393.0,40.8]
[1756797849837,0.6917,4393.1,4393.0,0.6409]
[1756797851435,0.2982,4393.1,4393.0,0.923]
[1756797851640,0.98537007,4393.7,4393.0,0.923]
[1756797851838,0.21937754,4393.6,4393.0,0.6409]
[1756797852038,0.7029,4393.6,4393.5,0.192]
[1756797852235,0.92227501,4393.6,4393.5,0.423]
[1756797852840,0.92227501,4393.6,4393.5,0.231]
[1756797853041,0.4263,4393.5,4393.4,0.231]
[1756797853242,1.04117501,4393.5,4393.4,0.231]
[1756797855940,1.04129358,4393.5,4393.4,0.231]
[1756797856140,0.73389358,4393.5,4392.9,44.0078]
[1756797856341,0.3074,4393.1,4393.0,0.423]
[1756797856543,0.92239358,4393.1,4393.0,0.192]
[1756797856844,0.92239358,4393.1,4393.0,0.423]
[1756797857043,0.92239358,4393.1,4392.9,3.2078]
[1756797857245,1.04129358,4393.0,4392.9,3.2078]
[1756797857435,1.04129609,4393.0,4392.9,3.4388]
[1756797857945,1.04129609,4393.0,4392.9,3.2078]
[1756797858147,6.38529609,4393.0,4392.9,3.2078]
[1756797859342,6.07789609,4393.0,4392.4,3.2078]
[1756797859540,0.7029,4392.5,4392.4,3.3998]
[1756797859844,0.92239609,4392.5,4392.4,3.6308]
[1756797860444,1.04129609,4392.5,4392.4,3.3998]
[1756797860746,2.02666616,4392.5,4392.4,3.4388]
[1756797861249,2.02666616,4392.5,4392.1,40.8]
[1756797861447,2.02666616,4392.5,4392.2,0.231]
[1756797861448,0.7029,4392.3,4392.2,0.231]
[1756797861647,0.92239609,4392.3,4392.2,0.231]
[1756797861848,0.92239609,4392.3,4392.1,40.8]
[1756797862044,1.10427007,4392.5,4391.9,3.3998]
[1756797862045,0.7029,4392.0,4391.9,3.3998]
[1756797862248,0.92239609,4392.0,4391.9,0.423]
[1756797862545,0.92239609,4392.0,4391.4,3.2078]
[1756797862546,0.7029,4391.5,4391.4,3.6083]
[1756797862743,1.04132167,4391.5,4391.4,3.6308]
[1756797863741,1.04132167,4391.5,4391.4,3.4388]
[1756797864145,1.04132167,4391.5,4391.4,3.2078]
[1756797865241,1.04132167,4391.5,4390.9,3.2078]
[1756797865543,1.68827007,4391.1,4391.0,0.231]
[1756797865742,0.92242167,4391.1,4391.0,0.231]
[1756797865948,1.90779174,4391.1,4391.0,0.231]
[1756797866148,0.1189,4391.0,4390.3,3.2078]
[1756797866443,1.68827007,4390.4,4390.3,3.2078]
[1756797866642,1.90779174,4390.4,4390.3,3.2078]
[1756797867947,1.90721275,4390.4,4390.3,3.2078]
[1756797868147,0.7029,4389.7,4389.6,3.2078]
[1756797868339,0.9218199,4389.7,4389.6,3.2078]
[1756797868550,0.92157429,4389.7,4389.6,3.6083]
[1756797868747,0.92157429,4389.7,4389.6,3.8904]
[1756797868940,0.92157429,4389.7,4389.6,3.6083]
[1756797869141,0.92157429,4389.7,4389.6,3.2078]
[1756797869346,0.92136036,4389.7,4389.6,3.2078]
[1756797870248,1.90673043,4389.7,4389.6,3.2078]
[1756797871553,1.90673043,4389.7,4389.6,3.3998]
[1756797871752,0.21846036,4389.7,4389.6,3.8904]
[1756797871947,0.3074,4389.9,4389.8,0.6826]
[1756797872151,0.52545863,4389.9,4389.8,0.6826]
[1756797872357,0.98537007,4390.0,4389.9,0.2821]
[1756797872559,1.51071439,4390.0,4389.9,0.6826]
[1756797872749,1.29277007,4390.0,4389.9,0.6826]
[1756797873257,1.49227007,4390.0,4389.9,0.6826]
[1756797873662,0.3074,4390.0,4389.9,0.6826]
[1756797874264,0.2278,4389.9,4388.5,0.311]
[1756797874454,0.3074,4389.9,4389.1,0.311]
[1756797874647,0.98537007,4389.3,4389.1,0.4005]
[1756797874855,1.18487007,4389.3,4389.2,0.7115]
[1756797875561,1.49227007,4389.3,4389.2,0.7115]
[1756797875762,3.2078,4389.7,4389.6,0.7115]
[1756797875958,0.1189,4389.5,4389.0,3.2078]
[1756797876254,0.1138,4390.1,4388.5,0.311]
[1756797876255,2.5804,4389.2,4389.1,0.7115]
[1756797876456,0.1138,4390.1,4389.1,4.42717007]
[1756797876762,0.1138,4390.1,4389.9,3.2078]
[1756797877060,0.1138,4390.1,4390.0,0.46279]
[1756797877663,0.1138,4390.1,4390.0,41.26279]
[1756797877860,0.1138,4390.1,4390.0,41.035]
[1756797879766,0.1138,4390.1,4390.0,40.8]
[1756797880264,3.2078,4391.5,4390.1,0.40997]
[1756797880467,3.2078,4391.5,4390.9,3.2078]
[1756797880668,3.2078,4391.5,4391.0,0.237]
[1756797881162,3.3242,4391.5,4390.4,3.2078]
[1756797881367,0.3083,4390.9,4390.5,0.237]
[1756797881768,0.3214,4391.0,4390.5,0.237]
[1756797881769,0.3083,4391.0,4390.5,0.237]
[1756797881968,0.3083,4391.4,4390.5,0.237]
[1756797882863,0.3083,4391.4,4390.4,3.2078]
[1756797883060,0.205,4390.9,4390.5,0.238]
[1756797883264,0.3214,4391.0,4390.5,0.238]
[1756797883465,3.3242,4391.5,4390.5,0.238]
[1756797883667,0.3083,4391.4,4390.5,0.238]
[1756797883973,0.5133,4391.4,4390.5,0.238]
[1756797884170,3.3242,4391.5,4390.6,0.238]
[1756797884373,0.7184,4390.7,4390.6,0.238]
[1756797884672,0.7184,4390.7,4390.4,3.2078]
[1756797884874,0.7184,4390.7,4390.5,0.238]
[1756797884875,0.3083,4390.6,4390.5,0.238]
[1756797885171,0.5133,4390.6,4390.5,0.238]
[1756797885663,0.3083,4390.5,4390.4,3.2078]
[1756797885866,0.5133,4390.5,4390.4,3.4458]
[1756797886066,0.3083,4390.5,4390.4,3.4458]
[1756797886572,0.3083,4390.5,4390.4,0.238]
[1756797890872,0.3083,4390.9,4390.4,0.238]
[1756797891373,0.5133,4390.9,4390.3,3.2078]
[1756797891568,0.5133,4390.9,4390.4,0.238]
[1756797892778,0.3083,4390.7,4390.4,0.238]
[1756797892980,0.3083,4390.9,4390.4,0.238]
[1756797893183,0.5133,4390.9,4390.4,0.238]
[1756797894073,3.3242,4391.5,4390.4,0.238]
[1756797894074,0.3083,4391.4,4390.4,0.238]
[1756797894379,0.3083,4391.2,4390.4,0.238]
[1756797894579,0.5133,4390.5,4390.4,0.238]
[1756797894772,0.205,4390.5,4390.4,0.237]
[1756797895375,0.5133,4390.5,4390.4,0.237]
[1756797895880,0.5133,4390.5,4390.4,0.238]
[1756797896179,0.3083,4390.5,4390.4,0.238]
[1756797896379,0.5133,4390.4,4390.3,3.2078]
[1756797896583,0.5133,4390.4,4390.3,3.4458]
[1756797898482,0.7184,4390.4,4390.3,3.4448]
[1756797899379,0.7184,4390.4,4390.3,3.2078]
[1756797899883,0.7184,4390.4,4390.3,3.4448]
[1756797900481,4.7184,4390.4,4390.0,73.603]
[1756797900678,0.1164,4390.5,4390.0,73.603]
[1756797900883,0.1164,4391.0,4390.2,3.2078]
[1756797901084,0.5273621,4390.9,4390.3,0.238]
[1756797901283,0.5133,4390.4,4390.3,0.238]
[1756797901484,0.7184,4390.4,4390.3,0.238]
[1756797901683,0.3083,4390.3,4390.2,3.2078]
[1756797901883,0.7184,4390.3,4390.2,3.4458]
[1756797902085,0.7184,4390.3,4390.2,0.238]
[1756797902284,0.93760929,4390.3,4390.2,0.238]
[1756797902485,0.93761609,4390.3,4390.2,0.238]
[1756797904890,0.93761609,4390.3,4390.2,0.237]
[1756797905387,0.3083,4390.3,4390.2,3.4448]
[1756797905590,0.3083,4390.8,4390.2,7.4448]
[1756797905789,0.3083,4390.8,4390.3,2.81196213]
[1756797905982,0.3083,4390.8,4390.4,0.237]
[1756797906186,0.22413504,4390.7,4390.5,40.8]
[1756797906382,0.3083,4390.7,4390.6,0.237]
[1756797906587,0.3083,4390.7,4390.2,3.2078]
[1756797906588,0.5133,4390.6,4390.2,3.2078]
[1756797906793,0.3083,4390.4,4390.3,0.237]
[1756797906991,0.7184,4390.3,4390.2,3.2078]
[1756797907193,0.5133,4390.3,4390.2,3.4448]
[1756797907594,0.3083,4390.3,4390.2,44.2448]
[1756797907890,0.205,4390.9,4390.4,0.40994]
[1756797908089,3.2078,4391.8,4390.5,0.237]
[1756797908291,0.51034126,4391.4,4390.7,3.2078]
[1756797908492,0.5133,4391.2,4390.8,0.237]
[1756797908698,0.3083,4391.0,4390.8,0.237]
[1756797908891,0.3083,4391.4,4390.8,0.237]
[1756797909089,0.3083,4391.2,4390.8,0.237]
[1756797909290,0.3083,4391.0,4390.8,0.237]
[1756797909694,0.5133,4391.4,4390.8,0.237]
[1756797909896,0.3083,4391.2,4390.8,0.237]
[1756797910199,0.3083,4391.0,4390.8,0.237]
[1756797910389,0.205,4391.0,4390.8,0.237]
[1756797910590,0.3083,4390.9,4390.8,0.237]
[1756797910791,0.3083,4391.4,4390.8,0.237]
[1756797910998,0.3083,4391.2,4390.8,0.237]
[1756797911191,0.3083,4391.4,4390.8,0.237]
[1756797911394,0.7047,4391.3,4391.2,3.2078]
[1756797911594,0.7047,4391.3,4391.2,3.4448]
[1756797912094,0.90671583,4391.3,4391.2,3.4448]
[1756797912298,0.7047,4391.3,4391.2,3.4448]
[1756797912799,0.90853177,4391.3,4391.2,3.4448]
[1756797913296,0.90853177,4391.3,4391.2,0.237]
[1756797913494,0.90853177,4391.3,4391.2,41.037]
[1756797913800,0.90853177,4391.3,4391.2,40.8]
[1756797913993,0.90853177,4391.3,4391.2,41.037]
[1756797914993,0.7047,4391.3,4391.2,41.037]
[1756797918098,0.7047,4391.3,4391.2,40.8]
[1756797918303,0.7047,4391.3,4391.2,41.037]
[1756797920495,0.2928,4391.3,4391.2,41.82815329]
[1756797922798,0.51496842,4391.3,4391.2,41.82815329]
[1756797923793,0.2928,4391.3,4391.2,41.82815329]
[1756797926610,0.2928,4391.7,4391.2,41.82815329]
[1756797926904,0.2928,4391.5,4391.4,0.79115329]
[1756797927205,0.51492205,4391.5,4391.4,1.02715329]
[1756797927711,0.2928,4391.8,4391.4,1.02715329]
[1756797927905,0.51492054,4391.7,4391.5,3.2078]
[1756797928207,0.51492054,4391.6,4391.5,3.2078]
[1756797928406,0.51492054,4391.6,4391.5,3.4438]
[1756797929304,0.2928,4391.6,4391.5,4.23495329]
[1756797930514,0.2069,4392.2,4391.5,4.23495329]
[1756797930699,0.2928,4392.0,4391.7,0.79115329]
[1756797930907,0.22207782,4391.9,4391.8,0.236]
[1756797931102,0.72177782,4391.9,4391.8,0.236]
[1756797933507,0.92677782,4391.9,4391.8,0.236]
[1756797934000,0.4997,4391.3,4391.2,40.8]
[1756797934201,0.2928,4391.3,4391.2,41.82715329]
[1756797934410,0.1151,4392.0,4391.2,41.82715329]
[1756797934611,0.42789445,4391.9,4391.5,3.99895329]
[1756797934806,0.72069445,4391.8,4391.6,0.235]
[1756797935006,0.72069445,4391.7,4391.6,0.235]
[1756797936004,0.51379445,4391.7,4391.6,0.235]
[1756797936205,0.2069,4392.5,4392.4,0.1932]
[1756797936410,0.4119,4392.5,4392.4,1.69445329]
[1756797936607,0.527,4392.5,4392.4,0.235]
[1756797936807,0.527,4392.5,4392.4,40.8]
[1756797937010,0.527,4392.5,4392.4,41.035]
[1756797937809,0.4119,4392.5,4392.4,41.035]
[1756797938205,0.7047,4392.5,4392.4,41.035]
[1756797941115,0.7047,4391.4,4391.3,0.1932]
[1756797941315,0.3921,4390.9,4390.8,4.39775329]
[1756797941615,0.6815,4390.9,4390.8,44.6426]
[1756797941808,0.6815,4390.9,4390.8,44.4066]
[1756797942008,0.6815,4390.9,4390.8,0.236]
[1756797943620,0.6815,4390.9,4390.8,1.42595329]
[1756797943813,0.6815,4390.9,4390.8,0.4423]
[1756797944213,0.6815,4390.9,4390.8,0.236]
[1756797944411,0.6815,4390.9,4390.8,0.4423]
[1756797945616,0.6815,4390.9,4390.8,0.236]
[1756797946013,3.8893,4390.9,4390.8,0.236]
[1756797948117,0.6815,4390.9,4390.8,0.236]
[1756797948422,0.90458507,4390.9,4390.8,0.236]
[1756797950324,0.3921,4390.4,4390.3,40.8]
[1756797950521,0.6815,4389.9,4389.8,3.2078]
[1756797950725,0.6815,4389.9,4389.8,3.6491]
[1756797951030,0.6815,4389.9,4389.8,44.4491]
[1756797951424,0.6815,4389.9,4389.8,44.7421]
[1756797951630,0.4778,4389.9,4389.8,44.7421]
[1756797952428,0.1239,4390.5,4389.8,44.7421]
[1756797952429,0.6815,4390.8,4390.7,0.3988]
[1756797952733,0.90397637,4390.8,4390.7,0.6338]
[1756797953130,0.90397637,4390.8,4390.7,0.9268]
[1756797953331,0.2894,4391.2,4390.7,0.9268]
[1756797953532,0.79115329,4391.7,4391.0,0.293]
[1756797953731,0.52470453,4391.1,4391.0,0.9268]
[1756797953934,0.52470453,4391.1,4391.0,41.7268]
[1756797954133,0.81410453,4391.1,4391.0,41.7268]
[1756797954328,0.81410453,4391.1,4391.0,42.51795329]
[1756797954534,0.4032,4391.1,4391.0,42.51795329]
[1756797955738,0.1138,4391.1,4391.0,42.51795329]
[1756797956034,0.1138,4391.1,4391.0,41.7268]
[1756797956737,0.2894,4391.4,4391.0,41.4338]
[1756797956940,0.2894,4391.4,4391.3,0.6926]